[Event "FIDE WSCC 65 2022"]
[Site "Assisi"]
[Date "2022.11.23"]
[Round "8.6"]
[White "Hebert, Jean"]
[Black "Maryasin, Boris"]
[Result "1/2-1/2"]
[ECO "E33"]
[WhiteElo "2333"]
[BlackElo "2258"]
[Annotator "TA"]
[PlyCount "86"]
[EventDate "2022.11.14"]
[EventType "swiss"]
[EventCountry "ITA"]
[SourceTitle "playchess.com"]
[Source "ChessBase"]
[SourceQuality "1"]
[TimeControl "40/5400+30:1800+30"]

{[%evp 13,86,15,42,29,39,18,12,12,13,0,9,16,8,14,33,0,7,0,0,0,0,0,5,-22,-27,-44,-54,-77,-64,-122,-93,-126,-63,-55,-48,-37,-21,-41,-40,-13,0,0,0,-104,0,-6,0,0,0,0,0,0,0,-6,-5,-9,-8,-12,0,0,8,0,0,0,0,0,0,0,0,0,0,0,0,0,0]} 1. d4 {[%emt 0:01:04]} Nf6 {[%emt 0:00:37]} 2. c4 {[%emt 0:00:42]} e6 {[%emt 0:00:35]} 3. Nc3 {[%emt 0:01:55]} Bb4 {[%emt 0:00:17]} 4. Qc2 {[%emt 0:00:49]} Nc6 {[%emt 0:02:51]} 5. Nf3 {[%emt 0:00:34]} d6 {[%emt 0:00:24]} 6. a3 {[%emt 0:02:19]} Bxc3+ {[%emt 0:00:13]} 7. Qxc3 {[%emt 0:00:03]} Qe7 {[%emt 0:00:14]} 8. g3 {[%emt 0:01:13] E33: Nimzo-Indian: Classical: 4...Nc6.} e5 {[%emt 0:01:03]} 9. dxe5 {[%emt 0:03:58]} dxe5 {[%emt 0:00:28]} 10. Bg2 {[%emt 0:00:49]} a5 {[%emt 0:02:40] Prevents b4.} 11. b3 {[%emt 0:02:38]} O-O {[%emt 0:00:15]} 12. O-O {[%emt 0:07:04]} Re8 {[%emt 0:02:42]} 13. Bb2 {[%emt 0:03:28]} Bf5 {[%emt 0:05:30]} 14. Nh4 {[%emt 0:07:37] [#]} (14. b4 $5 {[%cal Rb4b5]}) 14... Bg4 $146 {[%emt 0:03:42]} ({Predecessor:} 14... Bd7 15. Nf3 Bg4 16. Qe3 h6 17. Rad1 Qe6 18. Nd2 Bh3 19. Ne4 Bxg2 20. Nxf6+ Qxf6 21. Kxg2 {0-1 (50) Kalenik,R (2229)-Korobov,A (2511) Alushta 2002}) 15. Rfe1 {[%emt 0:13:54]} Nd4 {[%emt 0:07:21]} 16. f3 {[%emt 0:08:28]} ({Much weaker is} 16. Bxb7 Rab8 17. Bg2 Nxe2+ 18. Rxe2 Bxe2 $17) 16... Bd7 {[%emt 0:02:38]} 17. e3 {[%emt 0:00:58][%cal Be2e3,Be3e4][%mdl 32]} Nc6 {[%emt 0:01:47] ...g5 is the strong threat.} 18. e4 {[%emt 0:09:33]} Nd4 {[%emt 0:05:26]} 19. Qd3 {[%emt 0:03:06]} c5 {[%emt 0:00:46][%cal Bc7c5,Bc5d4][%mdl 32]} 20. Bxd4 {[%emt 0:00:42]} cxd4 {[%emt 0:00:15]} 21. f4 {[%emt 0:04:42] [#]} ({Better is} 21. Qd2 $15) 21... exf4 $1 $17 {[%emt 0:02:02]} 22. gxf4 {[%emt 0:05:26]} Nxe4 {[%emt 0:02:14]} 23. Nf3 {[%emt 0:04:15]} f5 {[%emt 0:04:53]} 24. Qxd4 {[%emt 0:00:23][%cal Oc4c5]} Bc6 {[%emt 0:01:28] Prevents c5.} 25. Ne5 {[%emt 0:03:18][%cal Oc4c5]} Rad8 {[%emt 0:01:13]} 26. Qe3 {[%emt 0:02:39]} Rd6 {[%emt 0:07:15]} (26... h6 {looks sharper.} 27. Bf3 Qh4 28. Rad1 Rxd1 29. Rxd1 g5) 27. b4 $1 {[%emt 0:01:53]} g5 {[%emt 0:06:00] Hoping for ...gxf4.} 28. Nf3 {[%emt 0:05:09]} (28. Nxc6 $11 {remains equal.} Rxc6 29. bxa5) 28... Re6 {[%emt 0:02:49]} (28... gxf4 $17 29. Qxf4 Rg6) 29. Nd4 $11 {[%emt 0:01:01] The position is equal.} Rg6 {[%emt 0:01:59] White must now prevent ...gxf4.} (29... gxf4 {feels hotter.} 30. Qxf4 Rg6 31. Nxc6 Qg7) 30. Nxc6 $1 {[%emt 0:02:32]} (30. bxa5 $2 {is the wrong capture.} gxf4 31. Qxf4 Qg7 32. Nxc6 Rxg2+ 33. Kh1 Rf2 $19) (30. Nxf5 $2 {loses.} Qf6 $19) 30... bxc6 {[%emt 0:01:11]} 31. fxg5 {[%emt 0:01:14]} axb4 {[%emt 0:00:39]} 32. axb4 {[%emt 0:00:22]} Qxb4 {[%emt 0:00:12]} 33. h4 {[%emt 0:01:01]} Qxc4 {[%emt 0:00:20][%cal Oh7h6]} 34. Rac1 {[%emt 0:00:36] Prevents h6.} Qb4 {[%emt 0:01:26][%cal Oh7h6]} 35. Qf4 {[%emt 0:00:55] Against h6} Qd4+ {[%emt 0:00:45]} 36. Kh2 {[%emt 0:00:17]} Qd6 {[%emt 0:01:09]} 37. Rf1 {[%emt 0:00:55]} (37. Qxd6 {simplifies} Rxd6 38. Rc5 Nxc5 39. Rxe8+ Kg7 40. Re5) 37... Rf8 {[%emt 0:03:23]} 38. Rce1 {[%emt 0:00:38]} c5 {[%emt 0:04:35]} (38... Nd2 $5 39. Rf2 $8 h6 $11) 39. Bxe4 {[%emt 0:01:10][%mdl 64] [#] Remove Defender} fxe4 {[%emt 0:00:11]} 40. Qxd6 {[%emt 0:00:25]} Rxd6 {[%emt 0:00:10]} 41. Rxf8+ {[%emt 0:30:11]} Kxf8 {[%emt 0:30:02]} 42. Rxe4 {[%emt 0:00:22]} Rc6 {[%emt 0:00:20]} 43. Rc4 {[%emt 0:00:24]} Rd6 {[%emt 0:28:00] Weighted Error Value: White=0.11 (very precise) /Black=0.10 (very precise)} 1/2-1/2

[Event "FIDE WSCC 65 2022"]
[Site "Assisi"]
[Date "2022.11.23"]
[Round "8.7"]
[White "Vaisser, Anatoly"]
[Black "De Jong, Tom"]
[Result "1/2-1/2"]
[ECO "B14"]
[WhiteElo "2463"]
[BlackElo "2216"]
[Annotator "TA"]
[PlyCount "81"]
[EventDate "2022.11.14"]
[EventType "swiss"]
[EventCountry "ITA"]
[SourceTitle "playchess.com"]
[Source "ChessBase"]
[SourceQuality "1"]
[TimeControl "40/5400+30:1800+30"]

{[%evp 11,81,19,12,-12,-19,-37,-52,-56,-19,-53,24,12,24,34,151,12,151,25,40,0,0,0,0,-20,17,-92,-68,-77,-48,-216,-55,-55,-55,-50,0,0,0,-54,-44,-48,-18,-41,-46,-55,-41,-40,-19,-17,-14,-25,0,0,8,8,8,-29,-29,-77,-77,-77,-39,-43,-43,-42,-43,-43,-33,-37,-33,-55,-54,-55]} 1. d4 {[%emt 0:00:06]} d5 {[%emt 0:00:06]} 2. c4 {[%emt 0:00:07]} e6 {[%emt 0:00:06]} 3. Nc3 {[%emt 0:00:40]} c5 {[%emt 0:00:50]} 4. e3 {[%emt 0:00:24]} cxd4 {[%emt 0:00:31]} 5. exd4 {[%emt 0:00:08]} Nf6 {[%emt 0:00:09]} 6. Nf3 {[%emt 0:00:42]} Bb4 {[%emt 0:00:23] The main line 6...Bb4 scores better than 6...Be7.} 7. c5 {[%emt 0:06:56] B14: Caro-Kann: Panov-Botvinnik Attack with 5...e6 and 5...g6.} O-O {[%emt 0:06:10]} 8. Bd3 {[%emt 0:08:11]} b6 {[%emt 0:01:45]} 9. cxb6 $1 {[%emt 0:00:46]} axb6 {[%emt 0:15:08]} 10. O-O {[%emt 0:01:04]} Ba6 {[%emt 0:00:16] [#]} ({Better is} 10... Bxc3 $1 $15 11. bxc3 Ba6) 11. Nb5 $146 {[%emt 0:01:38]} ({Predecessor:} 11. Ne5 Bxd3 12. Qxd3 Bxc3 13. bxc3 Qc7 14. Bf4 Rc8 15. Rfc1 Nc6 16. Qh3 Nxe5 17. Bxe5 {1-0 (32) Harshavardhan,G (2397)-Palchuk,A (2149) Chess.com INT 2020}) 11... Ne4 {[%emt 0:06:39]} 12. Bf4 {[%emt 0:06:53]} f6 {[%emt 0:08:28]} (12... Bd6 $14 13. Nxd6 Nxd6) 13. Rc1 {[%emt 0:07:36]} ({Only move:} 13. Nc7 $1 $16 {[%cal Rc7a8]} g5 14. Nxe6 (14. Nxa8 gxf4 15. Rc1 Rf7 $16)) 13... g5 {[%emt 0:19:48]} (13... Bxb5 $1 $11 {keeps the balance.} 14. Bxb5 Bd6 15. Bxd6 Nxd6) 14. Bxb8 {[%emt 0:09:16]} ({White should try} 14. Nc7 $1 $16) 14... Rxb8 {[%emt 0:04:56]} 15. Nc7 {[%emt 0:02:38]} Bxd3 {[%emt 0:02:37]} 16. Qxd3 {[%emt 0:00:47]} Qe7 {[%emt 0:04:13]} 17. Na6 {[%emt 0:14:21] Prevents g4.} Rb7 {[%emt 0:04:54] Against Rc7} 18. Qb5 {[%emt 0:09:20]} (18. Nxb4 $11 {remains equal.} Qxb4 19. a3) 18... Bd6 $36 {[%emt 0:10:15][%mdl 2048] Black fights for an advantage.} 19. Rc2 $1 {[%emt 0:02:23]} Ra8 {[%emt 0:02:00]} 20. Rfc1 $2 {[%emt 0:02:16] [#]} (20. a3 $1 $15) 20... Qd7 $2 {[%emt 0:04:12]} (20... Rba7 $1 $19 {[%cal Ra7a6]} 21. Rc8+ Rxc8 22. Rxc8+ Kg7) 21. Qxd7 $15 {[%emt 0:01:35]} Rxd7 {[%emt 0:00:02]} 22. Rc8+ {[%emt 0:00:13]} Rd8 {[%emt 0:02:47]} (22... Rxc8 $15 23. Rxc8+ Kf7) 23. Rxd8+ $11 {[%emt 0:00:20]} Rxd8 {[%emt 0:00:01]} 24. b4 {[%emt 0:01:31]} (24. Rc6 $11) 24... e5 {[%emt 0:02:57]} 25. h3 {[%emt 0:02:07]} h5 {[%emt 0:00:24]} 26. g4 {[%emt 0:01:09]} hxg4 {[%emt 0:00:09]} 27. hxg4 {[%emt 0:00:02]} exd4 {[%emt 0:00:26]} 28. Nxd4 {[%emt 0:00:45]} Ra8 {[%emt 0:01:41]} 29. b5 {[%emt 0:02:32]} Bc5 {[%emt 0:00:33]} 30. Nf5 {[%emt 0:02:55]} (30. Nxc5 {simplifies} Nxc5 31. Nf5 Kf7 32. Re1) 30... Bxf2+ {[%emt 0:01:10]} (30... Nxf2 $2 31. Nxc5 Rxa2 32. Nd7 Nxg4 33. Nxb6 $18) (30... d4 {keeps more tension.} 31. Kg2 d3 32. f3 Ba3) 31. Kg2 {[%emt 0:00:07]} Bc5 {[%emt 0:00:20]} 32. a4 {[%emt 0:00:43][%cal Oa4a5] a5! is the strong threat.} d4 {[%emt 0:00:17] Prevents a5.} 33. Rd1 {[%emt 0:02:18] Against d3} ({Not} 33. Re1 $2 {[#]} d3 $1 34. Nxc5 (34. Rxe4 $2 {is the wrong capture.} d2 $19) 34... Nxc5 $19) 33... Nc3 {[%emt 0:00:26][%csl LRa4,LRd1]} 34. Rd2 {[%emt 0:02:00]} (34. Ra1 $1 $11 {was preferrable.}) 34... Nxa4 $17 {[%emt 0:00:35] Strongly threatening ...Rd8.} 35. Nxd4 {[%emt 0:00:48]} Nc3 {[%emt 0:00:55] White must now prevent ...Rd8.} 36. Nxc5 {[%emt 0:01:16] Black is slightly better.} bxc5 {[%emt 0:00:07]} 37. Ne6 {[%emt 0:00:26] aiming for b6.} Nxb5 {[%emt 0:00:16] Threatens to win with ...c4.} 38. Nxc5 {[%emt 0:00:20]} Rc8 {[%emt 0:00:43]} 39. Ne4 {[%emt 0:01:00]} Rc6 {[%emt 0:00:41]} 40. Nxf6+ {[%emt 0:02:49][%mdl 64]} Rxf6 {[%emt 0:00:09]} 41. Rd5 {[%emt 0:30:07][%csl LRb5,LRg5] Weighted Error Value: White=0.32/Black=0.30} 1/2-1/2

[Event "FIDE WSCC 65 2022"]
[Site "Assisi"]
[Date "2022.11.23"]
[Round "8.8"]
[White "Birnboim, Nathan"]
[Black "Jurek, Josef"]
[Result "1-0"]
[ECO "E08"]
[WhiteElo "2361"]
[BlackElo "2211"]
[Annotator "TA"]
[PlyCount "161"]
[EventDate "2022.11.14"]
[EventType "swiss"]
[EventCountry "ITA"]
[SourceTitle "playchess.com"]
[Source "ChessBase"]
[SourceQuality "1"]
[TimeControl "40/5400+30:1800+30"]

{[%evp 18,161,25,8,29,0,14,0,0,14,6,0,0,0,0,0,-13,0,0,0,0,-28,-28,-41,-41,-47,0,-28,0,-40,0,-39,27,-32,128,-19,19,15,30,27,18,0,0,0,0,-10,0,0,38,0,0,0,0,-182,-114,-120,-113,-104,-61,-96,-121,-126,-120,-150,-162,-145,-115,-204,-126,-132,-125,-108,-83,-105,-58,-72,-59,-177,-166,-178,-165,-158,-146,-152,-179,-225,-87,-88,-37,-105,-105,-107,-72,-152,-155,-146,-59,-66,420,413,470,470,503,425,479,471,480,468,461,388,387,380,460,441,530,476,460,455,494,480,485,415,383,331,331,154,141,162,216,211,228,220,227,141,130,130,126,126,126,114,288,257,1550,1597,1597,1433]} 1. d4 {[%emt 0:00:05]} Nf6 {[%emt 0:00:23]} 2. c4 {[%emt 0:00:55]} e6 {[%emt 0:00:25]} 3. g3 {[%emt 0:00:08]} d5 {[%emt 0:00:30]} 4. Nf3 {[%emt 0:00:24]} Be7 {[%emt 0:01:49]} 5. Bg2 {[%emt 0:00:07]} O-O {[%emt 0:00:20]} 6. O-O {[%emt 0:00:30]} Nbd7 {[%emt 0:01:17]} 7. Qc2 {[%emt 0:00:49]} c6 {[%emt 0:00:36]} 8. b3 {[%emt 0:00:50]} b6 {[%emt 0:00:50]} 9. Rd1 {[%emt 0:00:11]} Bb7 {[%emt 0:01:18]} 10. Nc3 {[%emt 0:00:12]} Ba6 {[%emt 0:05:54] E08: Closed Catalan: Main Line: 7 Qc2.} 11. Nd2 {[%emt 0:09:11][%cal Bf3d2,Bd2f1,Bf1e3][%mdl 32]} b5 {[%emt 0:02:35]} 12. e4 {[%emt 0:01:02][%cal Re4d5]} dxc4 {[%emt 0:01:53] The position is equal.} 13. bxc4 {[%emt 0:00:18]} bxc4 {[%emt 0:00:25]} 14. Nf1 {[%emt 0:08:45] [#]} Qa5 $146 {[%emt 0:07:49]} ({Predecessor:} 14... Rb8 15. Ne3 Qa5 16. Bd2 Qa3 17. Bc1 Qa5 18. Bd2 Qa3 19. Bc1 Qa5 {½-½ (19) Postny,E (2582)-Santos Latasa,J (2608) Europe Echecs INT 2021}) 15. Ne3 {[%emt 0:05:23]} Rfd8 {[%emt 0:05:07]} 16. h3 {[%emt 0:00:56]} Rab8 {[%emt 0:08:35]} 17. Bd2 {[%emt 0:03:12][%cal Oc3d5]} Qa3 {[%emt 0:05:34]} 18. Rab1 {[%emt 0:17:28] Inhibits Rb2.} Bf8 {[%emt 0:05:19]} 19. Bf1 {[%emt 0:08:11]} (19. Bc1 $5 {[%cal Rc1a3]} Qa5 20. Bd2 $11) 19... Nb6 {[%emt 0:05:17]} 20. Bc1 {[%emt 0:02:47]} Qa5 {[%emt 0:03:32]} 21. Bb2 {[%emt 0:08:14]} Bb5 {[%emt 0:05:19]} (21... Rb7 $15) 22. Ba1 {[%emt 0:05:37][%cal Od4d5]} Ba6 {[%emt 0:08:45]} 23. Bg2 {[%emt 0:02:00]} h6 {[%emt 0:04:09]} 24. Kh2 {[%emt 0:03:39][%cal Od4d5]} Ba3 {[%emt 0:01:25]} (24... Rb7 $15) 25. f4 {[%emt 0:01:07]} (25. d5 $11) 25... Nbd7 $2 {[%emt 0:02:53]} (25... Bb4 $15 {keeps the upper hand.}) 26. Ne2 {[%emt 0:02:05]} (26. e5 $1 $16) 26... Bb5 {[%emt 0:02:55] White must now prevent ...Ba4.} 27. Nxc4 {[%emt 0:07:29]} Qa6 {[%emt 0:01:35]} 28. Nxa3 {[%emt 0:00:36]} Bxe2 {[%emt 0:04:51]} 29. Re1 {[%emt 0:04:26]} Bd3 $36 {[%emt 0:02:36][%mdl 2048] White is under pressure.} 30. Rxb8 {[%emt 0:00:08]} Rxb8 {[%emt 0:03:24]} 31. Qc1 {[%emt 0:00:30]} Qa4 {[%emt 0:01:36][%cal Oc6c5]} 32. Re3 {[%emt 0:00:43] Prevents c5.} Ba6 {[%emt 0:01:17]} 33. Rc3 {[%emt 0:00:49]} (33. Qc3 {with more complications.} c5 34. e5 cxd4 35. Qxd4 Rb4 36. Qxa7 Nd5 37. Bxd5 exd5 38. e6) 33... Rb6 {[%emt 0:01:47]} 34. g4 {[%emt 0:04:26]} Qxd4 {[%emt 0:00:55]} 35. Rg3 $2 {[%emt 0:03:30] Against e5} (35. Rc4 $11 {and White has nothing to worry.} Qf2 36. Bd4) 35... Qa4 {[%emt 0:01:07]} ({Black should play} 35... Qf2 $19 36. Rf3 Qxa2) 36. Re3 {[%emt 0:00:50]} Rb4 {[%emt 0:01:17]} 37. Bc3 {[%emt 0:00:39]} Rb8 {[%emt 0:00:52]} 38. Bf3 {[%emt 0:00:17]} c5 {[%emt 0:00:52]} 39. Bd1 {[%emt 0:00:53]} Qc6 {[%emt 0:00:22]} 40. Bf3 {[%emt 0:00:12]} Qc7 {[%emt 0:01:21]} 41. Re1 {[%emt 0:30:08]} Bd3 {[%emt 0:02:35]} 42. h4 {[%emt 0:00:00]} (42. Qe3 $17 {was worth a try.} Ba6 43. h4) 42... Ne8 {[%emt 0:02:44]} 43. e5 {[%emt 0:00:00]} c4 {[%emt 0:01:16]} 44. Nc2 {[%emt 0:00:00]} Nc5 {[%emt 0:02:01]} (44... Qc5 {looks sharper.} 45. Kg3 Nc7 46. Rd1 Nd5) 45. Nb4 {[%emt 0:00:00]} Bh7 {[%emt 0:03:24]} (45... h5 $17 46. gxh5 Bf5) 46. Qe3 $1 $15 {[%emt 0:00:00]} Rb6 {[%emt 0:02:09] Inhibits Nc6. Hoping for ...a5.} 47. Bd4 {[%emt 0:00:00] Inhibits a5.} (47. Rc1 $15) 47... Rxb4 $19 {[%emt 0:00:35]} 48. Bxc5 {[%emt 0:00:00]} Rb2+ {[%emt 0:00:52]} 49. Re2 {[%emt 0:00:00]} Rxe2+ {[%emt 0:00:40]} 50. Bxe2 {[%emt 0:00:00] This pair of bishops is nice.} Bd3 {[%emt 0:01:07]} 51. Bf3 {[%emt 0:00:00]} (51. Bd1 $142) 51... Qd8 {[%emt 0:02:32]} (51... c3 $1 $19 {[%cal Oh6h5]} 52. Qd4 Qa5) 52. Kg3 $17 {[%emt 0:00:00]} a6 {[%emt 0:01:42]} (52... c3 $17 {aiming for ...c2.} 53. Qd4 Qxd4 54. Bxd4 c2) 53. Bc6 {[%emt 0:00:00]} (53. Bb4 $15) 53... Qc8 {[%emt 0:01:40]} 54. Bf3 {[%emt 0:00:00]} Nc7 {[%emt 0:00:42]} (54... c3 {is more complex.} 55. Ba3 Qc4 56. Qc5 Nc7) 55. Ba3 {[%emt 0:00:00]} ({Better is} 55. h5) 55... Nb5 $1 {[%emt 0:01:07]} 56. Bb4 {[%emt 0:00:00]} Qd8 {[%emt 0:01:00]} (56... Qd7 $17 {[%cal Oh6h5] ...h5! is the strong threat.} 57. Qc5 Nd4) 57. Qc5 $1 $15 {[%emt 0:01:00] Inhibits h5.} Nd4 $2 {[%emt 0:01:10][%mdl 8192]} (57... Qd4 $15 58. Qxd4 Nxd4) 58. Qd6 $18 {[%emt 0:00:26]} Qe8 {[%emt 0:03:12]} 59. Qxd4 {[%emt 0:00:07]} Qa4 {[%emt 0:00:07]} 60. Qb2 {[%emt 0:01:00]} Qb5 {[%emt 0:00:34]} 61. Bc3 {[%emt 0:01:54] And now Qxb5 would win.} Qc5 {[%emt 0:00:25]} 62. Qf2 {[%emt 0:00:17] Prevents h5.} Qa3 {[%emt 0:00:15]} 63. Qd2 {[%emt 0:00:07]} Qc5 {[%emt 0:00:08]} 64. Kg2 {[%emt 0:00:09]} Qe7 {[%emt 0:00:21]} 65. h5 {[%emt 0:00:28]} Qh4 {[%emt 0:01:11]} 66. a3 {[%emt 0:00:38]} Qe7 {[%emt 0:00:36]} 67. Bb4 {[%emt 0:00:13]} Qd7 {[%emt 0:00:42]} 68. Qe3 {[%emt 0:00:35]} Qa4 {[%emt 0:00:24]} 69. Kf2 {[%emt 0:00:26]} a5 {[%emt 0:00:51]} 70. Bd6 {[%emt 0:00:37]} Qc2+ {[%emt 0:00:31]} 71. Be2 {[%emt 0:00:50]} (71. Kg3 $18 {is the precise move to win.}) 71... Qb2 {[%emt 0:00:50] Prevents f5.} 72. Bc5 {[%emt 0:01:06]} Qc2 {[%emt 0:03:13]} (72... Qa2 $142 73. Bd4 Qxa3) 73. Bb6 {[%emt 0:01:58]} Qb2 {[%emt 0:00:29] [#]} 74. Bd4 $1 {[%emt 0:01:30]} (74. Bxa5 Bxe2 75. Qxe2 c3 $11) 74... Qxa3 {[%emt 0:00:21]} 75. Bxd3 {[%emt 0:00:07]} cxd3 {[%emt 0:00:13] [#]} 76. Qd2 $1 {[%emt 0:00:11] Against Qa2} a4 {[%emt 0:01:05]} 77. Ke3 {[%emt 0:00:06][%cal Og4g5]} Qe7 {[%emt 0:00:52] Prevents g5.} 78. Kxd3 {[%emt 0:01:04]} Qh4 $2 {[%emt 0:00:19]} (78... Qb7 $16 {was necessary.}) 79. Qg2 {[%emt 0:00:33]} Qe1 $2 {[%emt 0:00:45]} (79... a3 80. f5 (80. Qa8+ Kh7 $18) 80... Qe1 81. Qa8+ Kh7 82. fxe6 (82. Qxa3 Qg3+ 83. Be3 Qxg4 $14) 82... Qd1+ 83. Kc4 Qc2+ 84. Kb4 fxe6 85. Qxa3 Qe4) 80. Qa8+ {[%emt 0:00:09]} Kh7 {[%emt 0:00:07]} 81. Qe4+ {[%emt 0:00:09] What a bad dream for Black.   Weighted Error Value: White=0.29 (precise) /Black=0.38} ({Not} 81. Qxa4 Qf1+ 82. Kc3 Qh3+ 83. Kb2 Qxg4 $16) 1-0

[Event "FIDE WSCC 65 2022"]
[Site "Assisi"]
[Date "2022.11.23"]
[Round "8.9"]
[White "Renman, Nils-Gustaf"]
[Black "Pomes Marcet, Joan"]
[Result "1/2-1/2"]
[ECO "D12"]
[WhiteElo "2320"]
[BlackElo "2197"]
[Annotator "TA"]
[PlyCount "102"]
[EventDate "2022.11.14"]
[EventType "swiss"]
[EventCountry "ITA"]
[SourceTitle "playchess.com"]
[Source "ChessBase"]
[SourceQuality "1"]
[TimeControl "40/5400+30:1800+30"]

{[%evp 12,102,37,26,20,25,34,9,10,10,20,14,11,-14,61,61,65,35,49,46,39,41,76,85,115,86,122,103,120,116,127,111,125,113,164,123,159,172,236,70,63,20,61,50,56,68,74,75,54,0,115,5,8,0,57,21,67,22,13,16,19,19,8,0,0,0,8,8,8,0,0,0,0,0,0,0,0,0,0,0,0,0,0,0,0,0,0,-4,0,0,0,-8,0]} 1. d4 {[%emt 0:00:01]} d5 {[%emt 0:00:07]} 2. c4 {[%emt 0:00:18]} c6 {[%emt 0:00:06]} 3. Nf3 {[%emt 0:00:28]} Nf6 {[%emt 0:00:10]} 4. e3 {[%emt 0:00:06]} Bf5 {[%emt 0:00:35]} 5. Nc3 {[%emt 0:00:05]} e6 {[%emt 0:00:09]} 6. Nh4 {[%emt 0:00:09]} Be4 {[%emt 0:03:11]} 7. f3 {[%emt 0:00:06]} Bg6 {[%emt 0:00:06] D12: Slav Defence: 3 Nf3 Nf6 4 e3 Bf5.} 8. g3 {[%emt 0:02:32]} Nbd7 {[%emt 0:03:05]} 9. Kf2 {[%emt 0:05:48]} Be7 {[%emt 0:01:59]} 10. Nxg6 {[%emt 0:00:13]} hxg6 {[%emt 0:00:15] [#]} 11. cxd5 $146 {[%emt 0:00:40]} ({Predecessor:} 11. Kg2 a6 12. b3 c5 13. cxd5 Nxd5 14. Nxd5 exd5 15. h4 Rc8 16. Be2 Bf6 17. Bb2 {1-0 (47) Duda,J (2731)-Nyzhnyk,I (2687) Chess.com INT 2022}) 11... exd5 {[%emt 0:15:10]} 12. e4 {[%emt 0:14:34]} (12. Kg2 {is more complex.} Nf8 13. e4 Ne6 14. e5) 12... Nb6 {[%emt 0:04:37]} (12... dxe4 $11 13. fxe4 Qb6) 13. e5 $14 {[%emt 0:00:34]} Nfd7 {[%emt 0:01:02][%cal Bf6d7,Bd7f8,Bf8e6][%mdl 32]} 14. Bd3 {[%emt 0:02:20]} Nf8 {[%emt 0:01:29]} 15. Be3 {[%emt 0:07:30]} Ne6 {[%emt 0:02:50]} 16. Rc1 {[%emt 0:05:33]} Kf8 {[%emt 0:19:06]} 17. Ne2 {[%emt 0:03:02]} Qd7 {[%emt 0:02:13][%cal Ob6c4]} 18. h4 {[%emt 0:01:18]} Rc8 {[%emt 0:05:04]} 19. Kg2 {[%emt 0:04:17]} c5 {[%emt 0:01:59]} 20. dxc5 {[%emt 0:00:29]} Bxc5 {[%emt 0:00:33]} 21. Bxc5+ {[%emt 0:00:53]} Rxc5 {[%emt 0:01:21]} 22. Qd2 {[%emt 0:01:32]} Qe7 {[%emt 0:01:58]} (22... Rxc1 $16 23. Rxc1 g5) 23. Rxc5 $18 {[%emt 0:14:39]} Nxc5 {[%emt 0:00:17] Pair of Knights!} 24. f4 {[%emt 0:00:10][%cal Bf3f4,Bf4f5][%mdl 32]} f5 {[%emt 0:12:50]} (24... g5 {was called for.}) 25. exf6 $2 {[%emt 0:07:30]} (25. Rc1 $18) 25... gxf6 $14 {[%emt 0:00:25]} 26. Nd4 {[%emt 0:02:38]} ({Don't play} 26. Bxg6 Nc4 27. Qe1 (27. Qxd5 $2 {too greedy.} Ne3+ 28. Kf2 Nxd5 $19) 27... f5 $15) 26... Nxd3 {[%emt 0:10:48]} (26... Nc4 {is interesting.} 27. Qc3 Ne4 28. Qc1 Ncd6) 27. Qxd3 {[%emt 0:00:03]} Kf7 {[%emt 0:02:08]} 28. f5 {[%emt 0:03:39]} Qe4+ $1 {[%emt 0:01:04]} 29. Qxe4 {[%emt 0:00:07]} dxe4 $16 {[%emt 0:00:05][%mdl 4096] Endgame KRN-KRN} 30. Rc1 {[%emt 0:06:13]} (30. Re1 $14) 30... gxf5 {[%emt 0:03:48]} (30... Rd8 $1 $11 31. Rc7+ Kg8) 31. Rc7+ {[%emt 0:00:23]} (31. Nxf5 $16 Ke6 32. g4) 31... Kg6 $11 {[%emt 0:00:11]} 32. Ne6 {[%emt 0:01:23]} Rb8 {[%emt 0:00:57]} (32... Nd5 $11 33. Rg7+ Kh6 34. Rxb7 Rc8) 33. Nf4+ $14 {[%emt 0:00:38]} Kh6 {[%emt 0:00:06]} 34. Rc5 {[%emt 0:00:11] White is much more active.} (34. Rf7 $5 {[%cal Rf7f6]}) 34... Rd8 {[%emt 0:00:35] The position is equal.} 35. Rxf5 {[%emt 0:00:14]} Rd2+ {[%emt 0:00:11]} 36. Kh3 {[%emt 0:00:12]} Nd7 {[%emt 0:00:35]} 37. Rd5 {[%emt 0:02:20]} e3 {[%emt 0:00:18] [#] Threatens to win with ...Rxd5.} 38. Rd3 {[%emt 0:02:43]} Ne5 {[%emt 0:03:04]} 39. Rxe3 {[%emt 0:00:32]} Rxb2 {[%emt 0:00:06]} 40. Nd5 {[%emt 0:03:12]} Kg6 {[%emt 0:00:58]} 41. a3 {[%emt 0:31:15]} Rd2 {[%emt 0:32:43]} 42. Ne7+ {[%emt 0:02:14]} Kh5 {[%emt 0:00:00] [#] ( -> ...Ng4)} 43. Nf5 {[%emt 0:00:00]} Rf2 {[%emt 0:00:00]} 44. g4+ {[%emt 0:00:00]} Kg6 $1 {[%emt 0:00:00]} 45. Nd6 {[%emt 0:00:00]} Rf4 {[%emt 0:00:00]} 46. Rg3 {[%emt 0:00:00]} b6 {[%emt 0:00:00]} 47. Nc8 {[%emt 0:00:00]} Ra4 {[%emt 0:00:00]} 48. Nd6 {[%emt 0:00:00]} Rd4 {[%emt 0:00:00]} 49. Nb5 {[%emt 0:01:10]} Ra4 {[%emt 0:00:00]} 50. Nd6 {[%emt 0:00:03]} Rd4 {[%emt 0:00:00]} 51. Nb5 {[%emt 0:01:49]} Ra4 {[%emt 0:00:00] Weighted Error Value: White=0.17 (very precise) /Black=0.22 (precise)} 1/2-1/2